{"text_format":"1","workbook":"xlsx","n_sheets":3,"sheets":["Протокол испытания","Лист2","Лист3"],"not_rendered":{"charts":1,"images":1,"macros":1,"external_links":1,"defined_names":3,"comments":0,"pivot_tables":0},"unopened":[],"bounds":{"document_bytes":16777216,"sheet_cells":100000,"rows_first":2000,"rows_last":500,"rows_between":2000,"halvings":0,"cell_chars":16384,"cell_head_chars":4096},"cells_cut":0,"cells_raw":0,"read":"whole","date_system":"1900"}

{"sheet":"Протокол испытания","index":0,"n_rows":105,"n_cols":17,"rows_kept":105,"cut":false,"hidden":false,"merged":[[95,1,95,9],[29,3,29,5],[20,8,20,9],[35,1,35,2],[36,1,36,2],[42,8,43,8],[42,9,43,9],[40,9,41,9],[28,8,28,9],[38,1,38,9],[60,8,60,9],[82,1,82,9],[72,1,72,9],[44,3,44,4],[37,1,37,2],[98,1,99,9],[59,1,59,7],[61,1,61,4],[62,1,62,4],[61,5,61,9],[62,5,62,9],[76,1,76,9],[77,3,77,9],[81,3,81,9],[80,3,80,9],[79,3,79,9],[78,3,78,9],[84,1,84,9],[83,1,83,9],[73,1,73,9],[94,1,94,9],[9,0,9,10],[44,1,44,2],[43,3,43,4],[42,5,43,5],[42,6,43,7],[42,1,43,2],[20,2,20,5],[21,3,21,9],[19,1,19,2],[39,1,41,2],[40,3,40,4],[41,3,41,4],[22,1,23,9],[39,3,39,9],[40,6,41,7],[40,8,41,8],[104,8,104,9],[104,5,104,7],[6,0,6,10],[8,0,8,10],[7,0,7,10],[18,8,18,9],[14,8,14,10],[11,8,11,10],[12,8,12,10],[13,8,13,10],[18,3,18,4],[16,4,16,5],[19,3,19,9],[42,3,42,4],[44,6,44,7],[103,8,103,9],[29,6,29,7],[29,8,29,9],[68,1,68,7],[85,1,85,9],[86,1,86,9],[29,1,30,2],[31,1,31,2],[32,1,32,2],[33,1,33,2],[34,1,34,2],[93,1,93,9],[92,1,92,9],[87,1,87,9],[88,1,88,9],[89,1,89,9],[90,1,90,9],[91,1,91,9]]}
[null,null,null,null,null,null,null,null,null,null,null,null,null,null,null,"2016-02-09T11:30:50","a.anisimov"]
[]
[]
[]
[]
[]
["ИНН 7719838588/ КПП500301001, 142703, Московская обл., Ленинский р-н, г. Видное, ул. Школьная, д.26а, "]
["ОКПО  17265369 ОКВЭД 26.63  ОКТМО – 46628101 ОГРН 1137746192990"]
["ТЕЛ.8 (495)  740-03-66 доб. 4569, e-mail: m.lab@gradindustry.ru"]
["Свидетельство об аттестации испытательной лаборатории № 211/15 от 10 июля 2015 г."]
[]
[null,null,null,null,null,null,null,null,"УТВЕРЖДАЮ:"]
[null,null,null,null,null,null,null,null,"Начальник лаборатории"]
[null,null,null,null,null,null,null,null,"___________ Р.В. Кузнецов"]
[null,null,null,null,null,null,null,null,{"$f":"I19","v":"2016-02-08"}]
[]
[null,null,null,null,"ПРОТОКОЛ №:",null,1]
[]
[null,"Дата поступления:  ",null,"2016-02-08",null,null,"Дата испытания: ",null,"2016-02-08"]
[null,"Карьер/Поставщик:",null,"ООО Карьер"]
[null,"Порода:","щебень из гравия",null,null,null,null,"Фракция:","5(3):10",null,null,"щебень из гравия",null,"5(3):10"]
[null,"Место хранения:",null,"Производственная база",null,null,null,null,null,null,null,"гравий",null,"5:20"]
[null,"Результаты испытаний:"]
[]
[null,"1.  Насыпная плотность  щебня в  естественном состоянии,  кг/м³:",null,null,null,null,null,null,null,1475,"кг/м³"]
[null,"2.  Насыпная плотность  щебня в  сухом состоянии,  кг/м³:",null,null,null,null,null,null,null,1487,"кг/м³"]
[null,"3. Влажность щебня, % по массе:",null,null,null,null,null,null,null,2.3400000000000001E-2]
[null,"4. Зерновой состав:"]
[null,null,null,null,null,null,null,null,"Таблица "]
[null,"  Размеры сит, мм",null,"         Частные остатки, г",null,null,"Средние значения",null," Полные остатки, %"]
[null,null,null,1,2,3,"г","%","факт.","ч.о.,% по ГОСТ 26633-2012 (таблица №3):"]
[null,"25",null,0,"-","-",{"$f":"AVERAGE(D32:F32)","v":0},{"$f":"G32/100","v":0},{"$f":"H32","v":0}]
[null,"20",null,624,"-","-",{"$f":"AVERAGE(D33:F33)","v":624},6.24,{"$f":"I32+H33","v":6.24}]
[null,"12,5",null,3152,"-","-",3152,31.52,37.76,null,null,null,null,"5(3):10",{"$f":"IF(J36=\"\",\"-\",IF(J36<=90,\"- не соответствует ГОСТ 26633-2012 п.3.5.2.4 таблица №3\",IF(J36>=90,\"- соответствует ГОСТ 26633-2012 п.3.5.2.4 таблица №3\",IF(J36>100,\"- не соответствует ГОСТ 26633-2012 п.3.5.2.4 таблица №3\",\"-\"))))","v":"- не соответствует ГОСТ 26633-2012 п.3.5.2.4 таблица №3"}]
[null,10,null,3500,"-","-",3500,35,72.759999999999991,{"$f":"IF(I21=N22,SUM(H34:H35),\"\")","v":""},null,null,null,"5:20",{"$f":"IF(J35=\"\",\"-\",IF(J35>75,\"- не соответствует ГОСТ 26633-2012 п.3.5.2.4 таблица №3\",IF(J35<60,\"- не соответствует ГОСТ 26633-2012 п.3.5.2.4 таблица №3\",\"- соответствует ГОСТ 26633-2012 п.3.5.2.4 таблица №3\")))","v":"-"}]
[null,5,null,1971,null,"-",1971,19.71,92.47,{"$f":"IF(I21=N21,SUM(H36:H37),\"\")","v":22.01}]
[null,2.5,null,230,"-","-",{"$f":"AVERAGE(D37:F37)","v":230},2.2999999999999998,94.77,{"$f":"IF(I21=N22,SUM(H36:H37),\"\")","v":""},null,null,"фр. 10:20",{"$f":"IF(I21=N22,O35,IF(I21=N21,O34,))","v":"- не соответствует ГОСТ 26633-2012 п.3.5.2.4 таблица №3"}]
[null,"Дно",null,258,"-","-",258,2.58,{"$f":"(I37+H38)/100","v":0.97349999999999992},null,null,null,"фр. 5:10",{"$f":"IF(J37=\"\",\"\",IF(J37<25,\"- не соответствует ГОСТ 26633-2012 п.3.5.2.4 таблица №3\",IF(J37>40,\"- не соответствует ГОСТ 26633-2012 п.3.5.2.4 таблица №3\",\"- соответствует ГОСТ 26633-2012 п.3.5.2.4 таблица №3\")))","v":""}]
[null,"Примечание. Допустимые пределы зернового состава каждой фракции (смеси), ГОСТ 8267-93 таблица №1"]
[null," Размеры отверстий контрольных сит, мм",null,"                   Полный остаток на ситах, % по массе, зерен размером, мм"]
[null,null,null,"  дополнительное сито",null,"d","       0,5 (d + D)",null,"D ","1,25 D"]
[null,null,null,"2,5 (1,25)",null,"5 (3)"]
[null," 5-20 и по фракциям, по согласованию",null,"95…100",null,"90…100","30…80",null,"0…10","0…0,50"]
[null,null,null,"для фр. 5-10 и 5-20 мм"]
[null,"    Фактические п.о.,%",null,{"$f":"I37","v":94.77},null,{"$f":"I36","v":92.47},{"$f":"I34","v":37.76},null,{"$f":"I33","v":6.24},{"$f":"I32","v":0}]
[]
[]
[]
[]
[]
[null,null,null,null,null,null,null,null,null,null,null,0,0.5,"25"]
[null,null,null,null,null,null,null,null,null,null,null,0,10,"20"]
[null,null,null,null,null,null,null,null,null,null,null,30,80,"12,5"]
[null,null,null,null,null,null,null,null,null,null,null,60,90,10]
[null,null,null,null,null,null,null,null,null,null,null,90,100,5]
[null,null,null,null,null,null,null,null,null,null,null,95,100,2.5]
[null,null,null,null,null,null,null,null,null,null,null,null,null,"Дно"]
[]
[]
[null,"5. Показатель дробимости испытуемой фракции щебня (гравия):"]
[null,null,null,null,null,null,null,null,"Таблица "]
[null,"Показатель дробимости, %",null,null,null,"Марка по дробимости щебня (гравия)",null,null,null,null,null,{"$f":"IF(C21=L22,IF(B63<=10,1000,IF(B63<=14,800,IF(B63<=18,600,IF(B63<=26,400)))))","v":false},{"$f":"IF(C21=L21,IF(B63<=10,1000,IF(B63<=14,800,IF(B63<=18,600,IF(B63<=26,400)))))","v":1000}]
[null,7.8,null,null,null,{"$f":"IF(M62=FALSE,L62,M62)","v":1000}]
[]
[null,"6. Содержание пылевидных и глинистых частиц,  % по массе:",null,null,null,null,null,null,null,8.9999999999999993E-3]
[null,"7. Истинная плотность исходной горной породы и зерен щебня (гравия), г/см³ ",null,null,null,null,null,null,null,2.6739999999999999,"г/см³"]
[null,"8. Пустотность, %:",null,null,null,null,null,null,null,{"$f":"(1-(J26/(J66*1000)))","v":0.44390426327599097}]
[null,"9. Содержание зерен пластинчатой (лещадной) и игловатой форм, % по массе:",null,null,null,null,null,null,null,0.1]
[null,"10. Содержание дробленых зерен в щебне из гравия, % по массе:",null,null,null,null,null,null,null,0.81]
[null,"11. Другие виды испытания: \"Содержание глины в комках, %\"",null,null,null,null,null,null,null,0]
[null,"12. Радиационно-гигиеническая оценка указанная предприятием-изготовителем:",null,null,null,null,null,null,null,370,"Бк/кг"]
[]
[null," З А К Л Ю Ч Е Н И Е:"]
[null,"1. Зерновой состав реокмендуемое содержание отдельных фракций в крупном заполнителе в составе бетона согласно таблице№3 ГОСТ 26633-2012:"]
[null,"фр. 10:20",{"$f":"N37","v":"- не соответствует ГОСТ 26633-2012 п.3.5.2.4 таблица №3"}]
[null,"фр. 5:10",{"$f":"IF(N38=\"\",\"-\",N38)","v":"-"}]
[null,"2. Допустимые пределы каждой фракции (смеси), согласно ГОСТ 8267-93:"]
[null,"а.","2,5(1,25)",{"$f":"IF(D45<=95,\"- не соответствует ГОСТ 8267-93 п.4.2.2 таблица №1\",IF(D45>=100,\"- не соответствует ГОСТ 8267-93 п.4.2.2 таблица №1\",\"- соответствует ГОСТ 8267-93 п.4.2.2 таблица №1\"))","v":"- не соответствует ГОСТ 8267-93 п.4.2.2 таблица №1"}]
[null,"б.","5(3)",{"$f":"IF(F45<=90,\"- не соответствует ГОСТ 8267-93 п.4.2.2 таблица №1\",IF(F45>=100,\"- не соответствует ГОСТ 8267-93 п.4.2.2 таблица №1\",\"- соответствует ГОСТ 8267-93 п.4.2.2 таблица №1\"))","v":"- соответствует ГОСТ 8267-93 п.4.2.2 таблица №1"}]
[null,"в.","0,5(d+D)",{"$f":"IF(G45<=30,\"- не соответствует ГОСТ 8267-93 п.4.2.2 таблица №1\",IF(G45>=80,\"- не соответствует ГОСТ 8267-93 п.4.2.2 таблица №1\",\"- соответствует ГОСТ 8267-93 п.4.2.2 таблица №1\"))","v":"- соответствует ГОСТ 8267-93 п.4.2.2 таблица №1"}]
[null,"г.","D",{"$f":"IF(I45<=0,\"- не соответствует ГОСТ 8267-93 п.4.2.2 таблица №1\",IF(I45>=10,\"- не соответствует ГОСТ 8267-93 п.4.2.2 таблица №1\",\"- соответствует ГОСТ 8267-93 п.4.2.2 таблица №1\"))","v":"- соответствует ГОСТ 8267-93 п.4.2.2 таблица №1"}]
[null,"д.","1,25 D",{"$f":"IF(J45>0.5,\"- не соответствует ГОСТ 8267-93 п.4.2.2 таблица №1\",\"- соответствует ГОСТ 8267-93 п.4.2.2 таблица №1\")","v":"- соответствует ГОСТ 8267-93 п.4.2.2 таблица №1"}]
[null,"3. Марки по дробимости щебня из гравия и гравия должны соответствовать требованиям, указанным в таблице №5:",null,null,null,null,null,null,null,null,null,{"$f":"F63","v":1000},null,null,"Марка дробимости допускает применять щебень из гравия для классов бетона В27,5 и ниже"]
[null,{"$f":"IF(L83=800,O83,IF(L83=1000,O84,IF(L83=600,\"\")))","v":"Марка дробимости допускает применять щебень из гравия для классов бетона ниже В30 и выше"},null,null,null,null,null,null,null,null,null,null,null,null,"Марка дробимости допускает применять щебень из гравия для классов бетона ниже В30 и выше"]
[null,"4. Содержание пылевидных и глинистых частиц вщебне из изверженных и метаморфических пород, щебне из гравия и в гравии не должно превышать 1%:"]
[null,{"$f":"IF(J65<=1%,\"- соответствует ГОСТ 26633-2012 п.3.5.2.5\",IF(J65>1%,\"- не соответствует ГОСТ 26633-2012 п.3.5.2.5\"))","v":"- соответствует ГОСТ 26633-2012 п.3.5.2.5"}]
[null,"5. Крупные заполнители должны иметь среднюю истинную плотность зерен от 2,000 до 3,000 г/см³"]
[null,{"$f":"IF(J66<2,\"- не соответствует ГОСТ 26633-2012 п.3.5.2.1\",IF(J66>3,\"- не соответствует ГОСТ 26633-2012 п.3.5.2.1\",\"- соответствует ГОСТ 26633-2012 п.3.5.2.1\"))","v":"- соответствует ГОСТ 26633-2012 п.3.5.2.1"}]
[null,"6. Содержание зерен пластичной (лещадной) и игловатой формы в крупном заполнителе не должно превышать 35% массы:"]
[null,{"$f":"IF(J68<35%,\"- соответствует ГОСТ 26633-2012 п.3.5.2.6\",IF(J68>35%,\"- не соответствует ГОСТ 26633-2012 п.3.5.2.6\",\"\"))","v":"- соответствует ГОСТ 26633-2012 п.3.5.2.6"}]
[null,"7. Щебень из гравия и валунов должен содержать дробленные зерна в колличестве не менее 80% по массе:"]
[null,{"$f":"IF(J69>80%,\"- соответствует ГОСТ 8267-93 п.4.3.1\",IF(J69<80%,\"- не соответствует ГОСТ 8267-93 п.4.3.1\",\"\"))","v":"- соответствует ГОСТ 8267-93 п.4.3.1"}]
[null,"8. Содержание глины в комках не должно быть более указанного в таблице №10:"]
[null,{"$f":"IF(J70<0.25,\"- соответствует ГОСТ 8267-93 п.4.7.2\",IF(J70>0.25,\"- не соответствует ГОСТ 8267-93 п.4.7.2\",\"\"))","v":"- соответствует ГОСТ 8267-93 п.4.7.2"}]
[null,"9. Щебень/щебень из гравия в зависимости от значений удельной эффективности  естественных радионуклидов Аэфф. По результатам которой устанавливают область его применения согласно ГОСТ 8267-93 п.4.9.:"]
[null,{"$f":"IF(N96<=370,O96,IF(N96>370,O97,IF(N96<=740,O97,IF(N96>740,O98,IF(N96<=1500,O98)))))","v":"щебень/щебень из гравия приемлем во вновь строящихся жилых и общественных зданиях;"},null,null,null,null,null,null,null,null,null,null,null,{"$f":"J71","v":370},"щебень/щебень из гравия приемлем во вновь строящихся жилых и общественных зданиях;"]
[null,null,null,null,null,null,null,null,null,null,null,null,null,null,"щебень/щебень из гравия приемлем для дорожного строительства в пределах территории населенных пунктов и зон перспективной застройки, а также при возведении производственных зданий и сооружений;"]
[null,null,null,null,null,null,null,null,null,null,null,null,null,null,"щебень/щебень из гравия приемлем в дорожном строительстве вне населенных пунктов;"]
[null,"Примечание: Запрещается частичная перепечатка  данного протокола без согласования с испытательной лабораторией"]
[null,null,null,null,null,null,null,null,null,null,null,"Болтенкова И.Ю."]
[null,null,null,null,null,null,null,null,null,null,null,"Кубакова Л.Р."]
[null,"     ",null,null,null,null,null,null,null,null,null,"Приходько В.А."]
[null,null,null,null,null,null,null,null,null,null,null,"Сухоручкин С.В."]
[null,"Испытания провел лаборант:",null,null,null,null,null,"/","Сухоручкин С.В.",null,"/"]
[null,null,null,null,null,"(подпись)",null,null,"(Ф.И.О.)"]

{"sheet":"Лист2","index":1,"n_rows":0,"n_cols":0,"rows_kept":0,"cut":false,"hidden":false,"merged":[]}

{"sheet":"Лист3","index":2,"n_rows":0,"n_cols":0,"rows_kept":0,"cut":false,"hidden":false,"merged":[]}